bitfinex/quotes_ETHUSD_20220220
["timestamp","ask_amount","ask_price","bid_price","bid_amount"]
[1645342103413,0.84011616,2653.0,2652.8,6.4e-06]
[1645342103859,0.84011616,2653.0,2652.1,1.1812]
[1645342104161,0.94377,2652.6,2652.1,1.1812]
[1645342104358,2.99777,2652.6,2652.1,1.1812]
[1645342106164,3.08388616,2652.6,2652.1,1.1812]
[1645342106564,3.08388616,2652.6,2651.5,6.4998]
[1645342106764,0.94391,2652.4,2651.5,6.4998]
[1645342106962,0.94393,2652.2,2651.5,6.4998]
[1645342107164,0.454,2652.1,2651.4,2.3884]
[1645342107411,0.754,2652.1,2651.4,2.3884]
[1645342107808,0.94406,2652.0,2651.4,2.3884]
[1645342110210,0.94406,2652.0,2650.7,3.4919]
[1645342110420,5.0,2650.9,2648.9,0.70744389]
[1645342110625,5.0,2650.9,2648.2,7.14524389]
[1645342110626,0.01227846,2650.0,2648.2,7.14524389]
[1645342110816,0.454,2649.9,2649.4,0.04204208]
[1645342111079,5.67,2649.5,2648.3,4.96564756]
[1645342111266,5.97,2649.5,2648.8,1.15751454]
[1645342111463,0.94494,2649.2,2648.8,1.15751454]
[1645342111665,0.94494,2649.2,2648.8,0.84674996]
[1645342111666,0.454,2649.1,2648.8,0.84674996]
[1645342112461,0.454,2649.1,2648.8,0.59554175]
[1645342113463,0.454,2649.1,2648.3,1.2335]
[1645342114560,0.454,2649.1,2648.7,0.91023151]
[1645342116212,0.454,2649.1,2648.3,1.2335]
[1645342117010,0.454,2649.1,2648.3,4.8168827]
[1645342117212,0.454,2649.1,2648.3,1.2335]
[1645342117410,0.454,2649.1,2648.8,1.17186027]
[1645342118860,0.454,2649.1,2648.3,1.2335]
[1645342119359,0.454,2649.1,2648.8,0.00672903]
[1645342121160,3.48997,2649.2,2649.1,0.908]
[1645342121161,2.54494,2649.2,2649.1,0.908]
[1645342121460,6.04494,2649.2,2649.1,0.908]
[1645342122711,0.45404,2649.2,2649.1,0.908]
[1645342122911,0.94484,2649.6,2649.1,0.908]
[1645342122912,0.404,2649.6,2649.1,0.908]
[1645342123116,0.454,2650.0,2649.9,1.12301796]
[1645342123315,1.88909,2650.3,2649.9,1.12301796]
[1645342123515,0.1885,2650.8,2650.5,0.92371036]
[1645342123710,2.91595497,2651.0,2650.5,0.92371036]
[1645342123711,0.454,2651.0,2650.5,0.92371036]
[1645342125110,0.454,2651.0,2650.9,1.19307667]
[1645342125312,1.88839,2651.3,2650.1,1.24027514]
[1645342125712,2.34239,2651.3,2650.1,1.24027514]
[1645342126393,2.34239,2651.3,2650.5,1.10268327]
[1645342126588,1.13281,2651.2,2650.5,1.10268327]
[1645342126788,0.3,2651.1,2650.5,1.10268327]
[1645342127389,1.24417,2651.1,2650.5,1.10268327]
[1645342127594,1.54417,2651.1,2650.5,1.10268327]
[1645342127792,2.54417,2651.1,2650.5,1.10268327]
[1645342128492,2.48853,2651.1,2650.5,1.10268327]
[1645342128693,1.0,2651.0,2650.5,1.10268327]
[1645342128892,2.88849,2651.1,2650.9,0.92427512]
[1645342129094,0.94417,2651.1,2650.9,0.92427512]
[1645342129293,1.88839,2651.3,2650.9,0.92427512]
[1645342129691,0.94404,2651.5,2650.9,0.92427512]
[1645342132314,1.24404,2651.5,2650.9,0.92427512]
[1645342132515,1.54404,2651.5,2651.3,1.16007434]
[1645342132715,0.94404,2651.5,2651.3,1.16007434]
[1645342133318,0.94404,2651.5,2650.7,0.00578043]
[1645342133978,0.94404,2651.5,2651.0,0.00570963]
[1645342134374,0.94404,2651.5,2651.1,0.93967818]
[1645342139217,0.94404,2651.5,2651.2,0.01146925]
[1645342139417,4e-05,2651.5,2651.2,3.51146925]
[1645342139820,4e-05,2651.5,2651.3,5.0]
[1645342140214,4e-05,2651.5,2651.2,8.29316925]
[1645342140514,4e-05,2651.5,2651.2,11.79316925]
[1645342140714,4e-05,2651.5,2651.2,8.29316925]
[1645342140914,4e-05,2651.5,2651.2,8.10466925]
[1645342141168,1.88725,2652.9,2651.2,8.10466925]
[1645342141169,3.5,2652.8,2651.7,0.00076]
[1645342141467,2.48725,2652.9,2652.4,0.94213463]
[1645342141668,1.0,2652.7,2652.4,0.94213463]
[1645342141874,0.6,2652.7,2652.4,0.94213463]
[1645342142066,0.3,2652.7,2651.7,0.00076]
[1645342142269,1.0,2652.8,2651.7,0.00076]
[1645342142768,3.48725,2652.9,2651.7,0.00076]
[1645342143472,3.48725,2652.9,2652.5,1.04061994]
[1645342144810,3.48725,2652.9,2651.7,2.76556]
[1645342145012,3.48725,2652.9,2651.7,0.00076]
[1645342145217,7.07336616,2652.9,2651.7,0.00076]
[1645342145413,0.1885,2652.8,2651.7,0.00076]
[1645342145613,1.88756,2652.5,2651.7,0.00076]
[1645342145813,0.3,2652.4,2652.0,0.86213661]
[1645342146014,1.24371,2652.4,2652.0,0.86213661]
[1645342146415,2.24371,2652.4,2652.0,0.86213661]
[1645342147616,1.94371,2652.4,2652.0,0.86213661]
[1645342147915,0.94371,2652.4,2652.0,0.86213661]
[1645342149867,0.9436,2652.7,2652.5,1.1001149]
[1645342150465,1.5436,2652.7,2651.9,0.00574739]
[1645342151465,1.5436,2652.7,2652.4,1.10564881]
[1645342151664,0.9436,2652.7,2652.4,1.10564881]
[1645342152064,1.2436,2652.7,2652.4,1.10564881]
[1645342152321,0.9436,2652.7,2652.4,1.10564881]
[1645342155926,1.88725,2652.9,2652.4,1.10564881]
[1645342156166,1.8869,2653.4,2652.5,3.5]
[1645342156364,2.34081,2653.9,2653.3,1.03081062]
[1645342157163,2.34053,2653.9,2653.3,1.03081062]
[1645342157766,2.94053,2653.9,2653.3,1.03081062]
[1645342158163,1.0,2653.8,2653.3,1.03081062]
[1645342158567,1.08611616,2653.8,2652.7,1.1663]
[1645342159663,1.08611616,2653.8,2653.0,0.98284513]
[1645342160515,0.94326,2653.7,2653.4,1.08191127]
[1645342160713,1.54326,2653.7,2653.4,1.08191127]
[1645342160914,1.54326,2653.7,2652.7,1.1663]
[1645342162016,1.62937616,2653.7,2653.0,1.01916584]
[1645342162214,1.62937616,2653.7,2652.7,1.1663]
[1645342163018,0.454,2653.6,2652.7,1.1663]
[1645342163414,0.08611616,2653.5,2653.1,0.86448672]
[1645342163864,0.08611616,2653.5,2653.1,0.8759835]
[1645342164265,0.454,2653.6,2653.1,0.8759835]
[1645342165263,0.754,2653.6,2653.1,0.8759835]
[1645342165663,1.754,2653.6,2653.1,0.8759835]
[1645342165864,0.754,2653.6,2653.1,0.8759835]
[1645342167318,0.754,2653.6,2653.5,0.89400871]
[1645342167921,0.754,2653.6,2653.1,0.01149678]
[1645342169120,0.754,2653.6,2653.1,0.00571689]
[1645342169326,0.754,2653.6,2653.4,1.05345847]
[1645342169524,0.454,2653.6,2653.4,1.05345847]
[1645342170221,1.24326,2653.7,2653.6,0.908]
[1645342172671,0.94326,2653.7,2653.6,0.908]
[1645342172874,2.13165,2654.1,2653.8,0.88056476]
[1645342172875,1.94313,2654.1,2653.8,0.88056476]
[1645342173073,2.54313,2654.1,2653.8,0.88056476]
[1645342173280,1.0,2654.0,2653.6,0.908]
[1645342173673,1.54313,2654.1,2653.6,0.908]
[1645342176824,1.54313,2654.1,2653.8,0.92979967]
[1645342179263,1.54313,2654.1,2653.8,0.93550661]
[1645342180566,1.54313,2654.1,2653.8,0.91722225]
[1645342183920,1.54313,2654.1,2653.9,0.01130179]
[1645342188579,1.54313,2654.1,2653.1,7.758]
[1645342188580,0.943464,2653.8,2652.1,0.1883]
[1645342188771,0.943464,2653.8,2651.7,0.00076]
[1645342188772,10.67,2653.0,2651.7,0.00076]
[1645342188976,6.06142844,2652.7,2651.7,0.00076]
[1645342189269,0.01238402,2652.1,2650.7,1.6037046]
[1645342189466,0.01238402,2652.1,2651.0,0.99069782]
[1645342189467,4.4198,2652.0,2651.0,0.99069782]
[1645342189670,0.94421,2651.7,2650.5,1.2448]
[1645342189929,0.9425,2651.6,2650.5,1.2448]
[1645342190128,0.9425,2651.6,2649.9,7.32]
[1645342190129,5.0,2650.9,2649.9,6.32]
[1645342190333,11.55,2651.4,2649.1,0.908]
[1645342190334,5.0,2650.1,2649.1,0.908]
[1645342190531,0.8331,2650.0,2649.1,0.908]
[1645342190728,0.8331,2650.0,2649.6,0.97055127]
[1645342190729,0.3,2649.9,2649.6,0.97055127]
[1645342190927,1.88983,2649.7,2649.6,1.19082113]
[1645342191130,2.83253,2649.7,2649.6,1.19082113]
[1645342191331,0.454,2649.7,2649.6,1.19082113]
[1645342191532,0.94498,2650.0,2649.8,0.908]
[1645342191728,1.39898,2650.0,2649.8,0.908]
[1645342192529,1.69898,2650.0,2649.8,0.908]
[1645342192729,2.69898,2650.0,2649.8,0.908]
[1645342193128,1.39898,2650.0,2649.8,0.908]
[1645342196595,1.39898,2650.0,2649.6,1.19082113]
[1645342199021,1.40017547,2650.0,2649.6,1.19082113]
[1645342199225,1.40017547,2650.0,2649.8,0.00547866]
[1645342200526,9.547e-05,2650.0,2649.8,0.00547866]
[1645342201186,9.547e-05,2650.0,2649.1,0.8301]
[1645342201385,0.0123315,2649.8,2649.1,0.8301]
[1645342201582,0.6427,2649.9,2649.1,0.8301]
[1645342201583,1.13345,2649.7,2649.1,0.8301]
[1645342201783,1.99875,2649.7,2649.1,0.8301]
[1645342202182,1.39875,2649.7,2649.6,0.95232924]
[1645342202384,0.454,2649.7,2649.6,0.95232924]
[1645342203184,2.18965547,2650.0,2649.6,0.95232924]
[1645342203385,3.18965547,2650.0,2649.6,0.95232924]
[1645342204188,3.18965547,2650.0,2649.8,0.00542884]
[1645342204189,1.89075194,2650.0,2649.8,0.00542884]
[1645342207722,1.89075194,2650.0,2649.2,3.43869456]
[1645342207921,1.84075194,2650.0,2649.7,1.01223021]
[1645342208130,0.1885,2650.5,2649.8,3.5]
[1645342208327,2.83338,2651.1,2649.8,3.5]
[1645342208328,0.1886,2651.2,2650.5,1.10634124]
[1645342208583,0.1885,2651.4,2650.9,0.83906891]
[1645342209177,1.88844,2651.3,2650.9,0.83906891]
[1645342209378,2.48844,2651.3,2650.9,0.83906891]
[1645342209682,0.1885,2651.5,2650.9,0.83906891]
[1645342210081,0.454,2651.9,2650.9,0.83906891]
[1645342210082,0.1885,2651.8,2650.9,0.83906891]
[1645342210880,0.94411,2651.4,2650.9,0.83906891]
[1645342211281,2.0766,2651.8,2651.3,1.06437054]
[1645342211481,0.17733691,2651.8,2651.4,3.5]
[1645342211680,0.1885,2652.3,2651.9,1.0094801]
[1645342211881,1.88796,2652.5,2651.5,6.5244]
[1645342212082,2.831844,2652.7,2651.6,3.5]
[1645342212083,0.94382,2652.2,2651.6,3.5]
[1645342212328,0.94382,2652.2,2651.2,3.5]
[1645342212524,0.1885,2652.8,2651.2,15.05]
[1645342212725,1.8875,2653.1,2651.3,11.55]
[1645342212726,0.1885,2653.0,2651.3,11.55]
[1645342212927,0.1885,2653.0,2651.2,3.6885]
[1645342212928,0.1885,2653.0,2651.4,15.05]
[1645342213125,1.8874,2652.8,2651.2,0.1885]
[1645342213327,4.1425,2652.7,2651.1,4.3084]
[1645342213527,3.5,2652.6,2651.1,4.3084]
[1645342213727,0.00104561,2651.3,2651.1,1.1535]
[1645342214128,0.94422,2651.2,2651.1,1.1535]
[1645342214329,0.00104561,2651.3,2651.1,2.09348103]
[1645342214528,0.00104561,2651.3,2651.1,0.93998103]
[1645342216670,0.00196316,2651.5,2651.1,0.93998103]
[1645342216870,0.00196316,2651.5,2651.3,5.0]
[1645342217271,1.88762,2652.5,2651.4,38.0]
[1645342217473,1.88762,2652.5,2652.1,1.06500775]
[1645342219069,2.18762,2652.5,2652.1,1.06500775]
[1645342219473,2.18762,2652.5,2651.6,1.248]
[1645342219672,3.18762,2652.5,2651.6,1.248]
[1645342220526,3.18762,2652.5,2651.8,0.83712286]
[1645342221126,1.88762,2652.5,2652.2,1.1680136]
[1645342221330,0.1885,2652.9,2652.2,1.1680136]
[1645342221528,2.83145,2653.0,2652.2,1.1680136]
[1645342222632,2.83145,2653.0,2652.6,0.89359166]
[1645342223029,2.83145,2653.0,2651.7,3.5]
[1645342223231,3.43145,2653.0,2651.7,3.5]
[1645342223427,1.0,2652.9,2651.7,3.29280921]
[1645342223677,0.00090866,2652.4,2651.7,3.29280921]
[1645342224476,0.00090866,2652.4,2652.3,0.90151514]
[1645342224877,0.00090866,2652.4,2651.7,3.29280921]
[1645342225881,0.94381,2652.3,2651.7,3.29280921]
[1645342226079,0.94381,2652.3,2652.1,1.07854102]
[1645342229524,0.00090866,2652.4,2652.1,1.07854102]
[1645342231571,0.94368,2652.7,2652.6,0.00181732]
[1645342233080,0.89368,2652.7,2652.6,0.00181732]
[1645342233474,1.72513,2653.0,2652.6,0.00181732]
[1645342233874,0.94368,2652.7,2652.6,0.00181732]
[1645342236926,1.72513,2653.0,2652.6,0.00181732]
[1645342243922,1.72513,2653.0,2652.7,0.00689496]
[1645342247673,3.02513,2653.0,2652.7,0.00689496]
[1645342247875,3.32513,2653.0,2652.7,0.00689496]
[1645342249376,3.32513,2653.0,2652.6,0.00181732]
[1645342249571,2.32513,2653.0,2652.6,0.00181732]
[1645342249826,1.72513,2653.0,2652.6,0.00181732]
[1645342250028,1.72513,2653.0,2652.8,0.8697956]
[1645342250426,1.72513,2653.0,2652.6,0.00181732]
[1645342250628,2.32513,2653.0,2652.6,0.00181732]
[1645342250826,3.32513,2653.0,2652.6,0.00181732]
[1645342251127,2.32513,2653.0,2652.6,0.00181732]
[1645342251330,1.0,2652.9,2652.6,0.00181732]
[1645342251526,3.32513,2653.0,2652.6,0.00181732]
[1645342252232,3.32513,2653.0,2652.3,1.05986772]
[1645342253126,3.32513,2653.0,2652.4,3.5]
[1645342253327,1.6,2653.0,2652.7,1.01036481]
[1645342253780,1.0,2653.0,2652.7,1.01036481]
[1645342253983,1.3,2653.0,2652.7,1.01036481]
[1645342254180,1.54356,2653.1,2652.7,1.01036481]
[1645342254384,0.94356,2653.1,2652.7,1.01036481]
[1645342254589,0.1884,2653.2,2652.7,1.01036481]
[1645342254785,3.82954606,2653.6,2652.7,1.01036481]
[1645342254786,0.95124606,2653.6,2652.7,1.01036481]
[1645342254984,0.00779606,2653.6,2653.5,0.89356463]
[1645342255181,1.88669,2654.0,2653.5,0.89356463]
[1645342255182,0.00779606,2653.9,2653.5,0.89356463]
[1645342255381,1.88669,2654.0,2653.5,0.89356463]
[1645342256082,1.88669,2654.0,2653.0,3.5]
[1645342256284,0.00779606,2653.9,2652.9,1.2042]
[1645342256883,0.00779606,2653.9,2653.0,4.54614669]
[1645342257084,0.00779606,2653.9,2653.0,1.04614669]
[1645342257325,0.94346,2653.6,2653.0,1.04614669]
[1645342257523,0.94346,2653.6,2652.9,1.2042]
[1645342257724,1.24346,2653.6,2652.9,1.2042]
[1645342257923,1.54346,2653.6,2652.9,1.2042]
[1645342258725,2.49346,2653.6,2652.9,0.7620682]
[1645342258925,1.49346,2653.6,2652.9,0.7620682]
[1645342259131,2.57957616,2653.6,2652.9,0.7620682]
[1645342259330,1.57957616,2653.6,2652.9,0.7620682]
[1645342259527,1.0,2653.5,2652.9,0.7620682]
[1645342259728,1.69749,2653.5,2652.7,1.1931]
[1645342259932,3.64111,2653.5,2652.7,1.1931]
[1645342260527,0.08611616,2653.4,2652.7,1.1931]
[1645342261573,0.08611616,2653.4,2652.7,2.27128966]
[1645342262673,2.69749,2653.5,2652.7,2.27128966]
[1645342263477,1.39749,2653.5,2652.8,3.5]
[1645342263681,1.39749,2653.5,2652.7,2.27128966]
[1645342264281,1.39749,2653.5,2652.8,0.00561786]
[1645342264478,1.39749,2653.5,2653.1,1.06449764]
[1645342268431,0.454,2653.5,2653.1,1.06449764]
[1645342268871,1.25110606,2653.8,2653.1,1.06449764]
[1645342269077,1.55110606,2653.8,2653.1,1.06449764]
[1645342269476,1.55110606,2653.8,2653.3,0.00622488]
[1645342270274,1.88691,2653.7,2653.3,0.00622488]
[1645342270576,2.34091,2653.7,2653.3,0.00622488]
[1645342270777,3.34091,2653.7,2653.3,0.00622488]
[1645342270973,3.52931,2653.7,2653.3,0.00622488]
[1645342271175,3.52931,2653.7,2653.2,0.0061486]
[1645342271376,0.94363,2653.6,2653.2,4.86e-05]
[1645342271578,5.0,2653.3,2651.7,1.1326]
[1645342271775,5.0,2653.3,2651.7,3.5]
[1645342271776,0.9438,2652.9,2651.7,3.5]
[1645342271980,0.6425,2652.8,2651.7,3.5]
[1645342272433,0.6425,2652.8,2651.8,1.10998858]
[1645342272434,0.84011616,2652.8,2651.8,1.10998858]
[1645342272629,1.88803,2652.5,2651.8,1.10998858]
[1645342272831,0.94396,2652.3,2651.8,1.10998858]
[1645342273030,1.39796,2652.3,2651.8,1.10998858]
[1645342273229,1.69796,2652.3,2651.8,1.10998858]
[1645342273837,1.69796,2652.3,2651.6,1.1919]
[1645342274332,1.69796,2652.3,2651.4,3.5]
[1645342274831,1.69796,2652.3,2651.5,0.88634323]
[1645342275433,1.69796,2652.3,2651.3,6.2944]
[1645342275734,1.8883,2651.9,2651.2,1.1718]
[1645342276178,2.6768,2651.9,2651.2,1.1718]
[1645342276377,1.0,2651.8,2651.2,1.1718]
[1645342277677,0.94413,2651.7,2651.2,1.1718]
[1645342278179,1.24413,2651.7,2651.2,1.1718]
[1645342279940,0.94393,2652.1,2651.4,1.16588015]
[1645342280428,1.24393,2652.1,2651.4,1.16588015]
[1645342281430,0.1885,2652.0,2651.4,1.16588015]
[1645342282031,0.1885,2652.0,2651.2,1.1718]
[1645342282631,1.13264,2652.0,2651.2,1.1718]
[1645342283032,1.43264,2652.0,2651.2,1.1718]
[1645342283233,0.1885,2652.0,2651.2,1.1718]
[1645342283432,2.13243,2652.1,2651.2,1.1718]
[1645342283675,2.54393,2652.1,2651.2,1.1718]
[1645342283878,0.00089094,2651.7,2651.2,1.1718]
[1645342286883,0.00089094,2651.7,2651.2,4.6718]
[1645342287330,0.00089094,2651.7,2651.2,1.1718]
[1645342288732,0.00089094,2651.7,2651.2,4.6718]
[1645342289137,0.00089094,2651.7,2651.2,1.1718]
[1645342289334,0.00565234,2651.6,2651.2,4.6718]
[1645342290138,0.00565234,2651.6,2651.2,1.1718]
[1645342290332,0.00565234,2651.6,2651.2,4.6718]
[1645342290535,0.00565234,2651.6,2651.2,1.1718]
[1645342290734,0.00565234,2651.6,2651.5,1.11707782]
[1645342290934,0.00565234,2651.6,2651.5,4.61707782]
[1645342291591,0.00568485,2652.0,2651.7,0.01130467]
[1645342291985,0.00568485,2652.0,2651.7,11.36360467]
[1645342292883,0.00568485,2652.0,2651.8,11.55]
[1645342293085,0.00568485,2652.0,2651.9,15.05]
[1645342293883,0.1885,2653.5,2651.9,15.05]
[1645342294084,0.1885,2653.5,2653.0,0.90696057]
[1645342294486,0.1885,2653.5,2652.2,16.2639]
[1645342295527,0.1885,2653.5,2652.6,1.13781367]
[1645342295729,0.1885,2653.5,2652.7,3.5]
[1645342296129,0.1885,2653.5,2652.3,3.5]
[1645342296329,0.1885,2653.5,2652.4,1.2072]
[1645342296531,0.1885,2653.5,2652.4,1.021287]
[1645342296730,0.94355,2653.2,2652.4,1.021287]
[1645342296929,1.54355,2653.2,2652.5,0.97184902]
[1645342297130,2.54355,2653.2,2652.5,0.97184902]
[1645342298430,1.94355,2653.2,2652.5,0.97184902]
[1645342298679,0.94355,2653.2,2652.5,0.97184902]
[1645342299284,0.94355,2653.2,2652.9,1.16866429]
[1645342299480,0.19486863,2653.5,2652.9,1.16866429]
[1645342300281,0.19486863,2653.5,2652.5,3.5]
[1645342300480,0.00636863,2653.5,2652.5,3.5]
[1645342301287,0.00636863,2653.5,2653.0,1.18271887]
[1645342302331,0.00636863,2653.5,2652.7,3.5]
[1645342302531,0.00636863,2653.5,2652.6,7.5111]
[1645342302532,0.00636863,2653.5,2652.6,16.0111]
[1645342303432,0.00636863,2653.5,2653.0,0.983325]
[1645342304133,0.01087926,2653.5,2653.0,0.983325]
[1645342309585,0.94337,2653.7,2653.0,0.983325]
[1645342309586,0.85424926,2653.7,2653.0,0.983325]
[1645342311141,4.82854754,2654.5,2653.6,43.5]
[1645342311345,0.1883,2654.6,2653.8,1.09798651]
[1645342311538,1.5,2654.7,2653.9,3.5]
[1645342311539,0.5,2654.7,2653.9,3.5]
[1645342311936,0.5,2654.7,2654.0,5.0]
[1645342312136,0.5,2654.7,2654.1,15.2382]
[1645342312337,0.6423,2656.1,2655.3,1.17626602]
[1645342312338,0.00273703,2655.5,2655.3,1.17626602]
[1645342312738,0.00273703,2655.5,2654.3,3.5]
[1645342313137,1.49664659,2655.9,2654.3,3.5]
[1645342313606,0.00273762,2655.5,2654.3,3.5]
[1645342313801,0.00273762,2655.5,2654.9,0.99981918]
[1645342314200,0.94279,2655.4,2654.9,0.99981918]
[1645342314798,1.24279,2655.4,2655.3,0.91755482]
[1645342315000,0.94279,2655.4,2655.3,0.91755482]
[1645342315298,0.94279,2655.4,2654.6,7.7187]
[1645342315600,0.94264,2655.8,2654.7,3.5]
[1645342315805,0.00274376,2655.5,2654.5,3.5]
[1645342316399,0.00274376,2655.5,2655.2,1.018973]
[1645342316801,0.1882,2656.0,2655.2,1.018973]
[1645342317003,0.19917115,2656.1,2655.7,1.09270725]
[1645342317206,0.01097115,2656.1,2655.7,1.09270725]
[1645342318038,0.1882,2656.8,2655.5,1.2034]
[1645342318240,1.02252506,2656.9,2655.6,26.0]
[1645342318438,0.04149492,2656.7,2655.6,26.0]
[1645342318842,0.04092649,2656.6,2655.6,26.0]
[1645342319042,0.98330649,2656.6,2655.6,26.0]
[1645342319243,0.04035807,2656.5,2656.1,1.01383206]
[1645342320641,0.04296731,2656.5,2656.1,1.01383206]
[1645342321604,0.04296731,2656.5,2655.5,1.3916]
[1645342321605,1.92537807,2656.5,2655.5,1.3916]
[1645342321798,1.92537807,2656.5,2655.5,1.2034]
[1645342321799,3.31409547,2656.5,2655.5,1.2034]
[1645342321994,3.61409547,2656.5,2655.5,1.2034]
[1645342322596,0.94261,2656.3,2655.5,1.2034]
[1645342322893,0.94261,2656.3,2655.5,2.34114786]
[1645342322894,1.88524,2656.2,2655.5,2.34114786]
[1645342323294,2.97135616,2656.2,2655.5,1.2034]
[1645342323495,3.954,2656.1,2655.5,1.2034]
[1645342323697,4.7422,2656.1,2655.5,1.03644851]
[1645342323897,1.0,2656.0,2655.1,1.1772]
[1645342324104,0.454,2655.9,2655.1,1.1772]
[1645342324299,0.94269,2655.7,2655.1,1.1772]
[1645342324499,0.454,2655.9,2655.8,0.90144775]
[1645342324700,1.60311881,2656.3,2655.1,1.1772]
[1645342324701,0.08611616,2656.3,2656.2,0.91074536]
[1645342324940,0.05240842,2656.5,2656.2,0.91074536]
[1645342325142,0.04962655,2656.5,2655.2,13.311]
[1645342325343,0.04962655,2656.5,2655.2,20.6305]
[1645342326145,0.34962655,2656.5,2655.2,20.6305]
[1645342326344,0.34962655,2656.5,2656.1,0.94348083]
[1645342326541,0.64962655,2656.5,2656.1,0.94348083]
[1645342328990,0.65240696,2656.5,2656.1,0.94348083]
[1645342329190,2.53738696,2656.5,2655.2,20.6305]
[1645342329391,1.0,2656.4,2655.2,17.8928]
[1645342329986,1.0,2656.4,2655.2,14.7882]
[1645342330486,1.0,2656.4,2655.6,0.94247024]
[1645342330890,2.88501,2656.4,2655.6,0.84483486]
[1645342331090,2.78501,2656.4,2655.2,14.7882]
[1645342331289,0.94264,2656.0,2655.2,14.7882]
[1645342331490,0.3,2655.9,2655.2,7.4687]
[1645342331892,2.18537,2655.9,2655.2,7.4687]
[1645342332935,4.07089,2655.9,2655.2,1.1378]
[1645342333140,4.07089,2655.9,2655.1,2.29158452]
[1645342333338,1.1882,2655.8,2655.1,2.29158452]
[1645342333535,1.4882,2655.8,2655.1,2.29158452]
[1645342333935,1.4882,2655.8,2655.1,1.1772]
[1645342334141,10.254,2655.8,2654.8,1.1781]
[1645342334340,1.88596,2655.5,2654.2,3.0678]
[1645342334547,0.943,2655.0,2654.2,4.3116]
[1645342334739,0.943,2655.0,2654.2,1.2438]
[1645342334936,0.454,2655.1,2655.0,0.76570743]
[1645342335538,0.754,2655.1,2655.0,0.76570743]
[1645342336590,0.754,2655.1,2655.0,7.43e-06]
[1645342336793,0.94314,2654.8,2654.0,1.127]
[1645342336988,0.454,2654.7,2654.0,1.127]
[1645342337688,2.24314,2654.8,2654.0,1.127]
[1645342337689,1.0,2654.8,2654.6,1.00817732]
[1645342337890,1.0,2655.5,2654.6,1.00817732]
[1645342338091,1.3,2655.5,2654.6,1.00817732]
[1645342338988,0.00682917,2655.1,2654.6,1.00817732]
[1645342340640,1.89276917,2655.1,2654.6,1.00817732]
[1645342340843,1.89276917,2655.1,2654.3,7.8419]
[1645342341043,1.89276917,2655.1,2654.2,6.0259]
[1645342341044,0.94296,2655.0,2654.2,6.0259]
[1645342341447,0.94296,2655.0,2654.1,1.1947]
[1645342341843,0.94296,2655.0,2654.1,2.25289031]
[1645342342045,0.76082917,2655.1,2654.1,2.25289031]
[1645342342244,1.76082917,2655.1,2654.1,2.25289031]
[1645342342844,0.76082917,2655.1,2654.1,2.25289031]
[1645342344287,0.94297,2655.0,2654.1,1.1947]
[1645342345389,0.94297,2655.0,2654.2,0.93793628]
[1645342346592,1.24297,2655.0,2654.2,0.93793628]
[1645342346995,1.24297,2655.0,2654.3,3.5]
[1645342347192,2.24297,2655.0,2654.1,1.1947]
[1645342347443,1.24297,2655.0,2654.1,1.1947]
[1645342348644,2.24297,2655.0,2654.1,1.1947]
[1645342348844,0.00682917,2655.1,2654.1,1.1947]
[1645342349051,0.3,2655.0,2654.1,1.1947]
[1645342349250,0.19502917,2655.1,2654.1,1.1947]
[1645342349446,0.00663668,2655.0,2654.1,1.1947]
[1645342349646,0.00663668,2655.0,2654.1,4.6947]
[1645342350349,0.00663668,2655.0,2654.5,0.97699612]
[1645342350748,0.00663668,2655.0,2654.6,3.5]
[1645342350948,0.00663668,2655.0,2654.5,0.97699612]
[1645342352789,0.00663668,2655.0,2654.2,3.5]
[1645342352790,0.00663668,2655.0,2654.9,0.930357]
[1645342353094,0.00663668,2655.0,2654.3,3.1562]
[1645342353892,0.00663668,2655.0,2654.7,1.16314692]
[1645342354089,0.00663668,2655.0,2654.4,13.5922]
[1645342355848,0.94956668,2655.0,2654.4,13.5922]
[1645342356050,0.94956668,2655.0,2654.3,0.89145052]
[1645342356251,1.24956668,2655.0,2654.3,0.89145052]
[1645342358257,0.00663668,2655.0,2654.4,3.5]
[1645342358697,0.00663668,2655.0,2654.7,1.05361117]
[1645342359502,0.00663668,2655.0,2654.8,3.5]
[1645342360199,0.00663668,2655.0,2654.8,3.49862517]
[1645342360400,0.00663668,2655.0,2654.9,1.2456]
[1645342360599,0.00663668,2655.0,2654.9,4.7456]
[1645342360906,0.00666585,2655.1,2655.0,0.01991004]
[1645342361108,0.00666585,2655.1,2655.0,3.51991004]
[1645342361700,0.00666585,2655.1,2655.0,3.70811004]
[1645342362346,0.00666585,2655.1,2655.0,3.51991004]
[1645342362548,6.585e-05,2655.1,2655.0,15.06991004]
[1645342362746,6.585e-05,2655.1,2655.0,3.51991004]
[1645342363946,1.13065,2656.4,2655.0,3.51991004]
[1645342364151,1.13065,2656.4,2655.6,0.93199159]
[1645342364850,1.21676616,2656.4,2655.6,0.93199159]
[1645342365048,2.35369647,2656.6,2656.0,1.09087038]
[1645342365049,0.13065,2656.5,2656.0,1.09087038]
[1645342365250,0.13343011,2656.5,2656.0,1.09087038]
[1645342365851,0.13343011,2656.5,2655.7,1.2103]
[1645342366101,0.43065,2656.5,2655.7,1.2103]
[1645342366294,0.43343036,2656.5,2655.7,1.2103]
[1645342366693,0.51954652,2656.5,2655.7,1.2103]
[1645342367199,0.51954652,2656.5,2655.8,0.90354357]
[1645342367393,0.51676616,2656.5,2655.8,0.90354357]
[1645342367593,0.51954637,2656.5,2655.8,0.90354357]
[1645342367794,0.94243,2656.4,2655.8,0.90354357]
[1645342368195,0.94243,2656.4,2655.8,4.40354357]
[1645342368795,0.43065,2656.5,2655.8,4.40354357]
[1645342368796,0.43343021,2656.5,2655.8,4.40354357]
[1645342368995,0.13343021,2656.5,2655.8,0.90354357]
[1645342369196,0.13343021,2656.5,2655.8,4.40354357]
[1645342369396,0.0112155,2656.4,2655.8,0.90354357]
[1645342370641,0.0112155,2656.4,2655.8,4.40354357]